fUST/lending_fUST_20260225
["ID","MTS","AMOUNT","RATE_DAILY","PERIOD"]
[406639997,1772010454121,-473.67327033,0.00013273,2]
[406639998,1772010483170,159.3,9.99e-05,2]
[406639999,1772010483431,159.28,9.99e-05,120]
[406640065,1772010604788,157.43,9.5e-05,2]
[406640066,1772010605309,157.43,9.6e-05,2]
[406640067,1772010606241,157.43,9.7e-05,2]
[406640068,1772010607188,157.43,9.8e-05,2]
[406640069,1772010607386,157.43,9.8e-05,2]
[406640070,1772010607909,157.43,9.9e-05,2]
[406640071,1772010608421,157.43,0.0001,2]
[406640072,1772010609092,157.43,0.000101,2]
[406640073,1772010609763,157.43,0.000102,2]
[406640074,1772010610796,157.43,0.000103,2]
[406640075,1772010611462,157.43,0.000104,2]
[406640076,1772010612144,157.43,0.000104,2]
[406640098,1772010638663,-3658.8587075,0.0001314,2]
[406640099,1772010638672,-606.0,0.0001314,2]
[406640100,1772010638681,-150.0,0.00013486,2]
[406640101,1772010638691,-288.18375169,0.00013699,2]
[406640102,1772010638700,-81.064895,0.000142,60]
[406640103,1772010638709,-197.73243758,0.00015486,2]
[406640104,1772010638718,-800.0,0.00019217,5]
[406640116,1772010638894,-300.0,0.00019989,2]
[406640118,1772010638913,-300.0,0.00019989,2]
[406640120,1772010638923,-300.0,0.00019989,2]
[406640122,1772010638932,-300.0,0.00019989,2]
[406640124,1772010638942,-1867.81,0.0001999,3]
[406640126,1772010638951,-933.91,0.0001999,3]
[406640128,1772010638961,-466.95,0.0001999,3]
[406640130,1772010638970,-233.48,0.0001999,3]
[406640132,1772010638980,-700.44,0.0001999,3]
[406640134,1772010638989,-2422.55922865,0.0001999,2]
[406640136,1772010638999,-34789.20826146,0.0002,2]
[406640140,1772010639023,-15802.06582576,0.0002,2]
[406640187,1772010641355,-372.62374892,0.0002,2]
[406640213,1772010644077,-857.89172219,0.0002,2]
[406640247,1772010646731,-925.33276025,0.0002,2]
[406640250,1772010807373,195890.25768142,0.0001,2]
[406640252,1772011033106,-1000.0,0.00018369,2]
[406640253,1772011034942,-1000.0,0.00018369,2]
[406640254,1772011035800,-951.05587231,0.00018369,2]
[406640255,1772011035822,-48.94412769,0.00018555,2]
[406640256,1772011036528,-185.06179931,0.00018555,2]
[406640257,1772011036549,-814.93820069,0.00018838,2]
[406640258,1772011036960,-1000.0,0.00018838,2]
[406640259,1772011037426,-1000.0,0.00018838,2]
[406640260,1772011037768,-1000.0,0.00018838,2]
[406640261,1772011038135,-222.10127121,0.00018838,2]
[406640262,1772011038155,-150.0,0.00019277,2]
[406640263,1772011038177,-378.27714823,0.00019837,2]
[406640264,1772011038198,-249.62158056,0.00019837,2]
[406640265,1772011038592,-250.37841944,0.00019837,2]
[406640266,1772011038613,-500.0,0.00019837,2]
[406640267,1772011038633,-249.62158056,0.00019837,2]
[406640268,1772011039045,-250.37841944,0.00019837,2]
[406640269,1772011039066,-500.0,0.00019837,2]
[406640270,1772011039090,-249.62158056,0.00019837,2]
[406640271,1772011039372,-250.37841944,0.00019837,2]
[406640272,1772011039395,-500.0,0.00019837,2]
[406640273,1772011039568,-249.62158056,0.00019837,2]
[406640274,1772011039823,-250.37841944,0.00019837,2]
[406640275,1772011039845,-500.0,0.00019837,2]
[406640276,1772011039865,-249.62158056,0.00019837,2]
[406640277,1772011040183,-353.1705784,0.00019837,2]
[406640278,1772011040204,-500.0,0.00019837,2]
[406640279,1772011040226,-146.8294216,0.00019837,2]
[406640280,1772011040505,-353.1705784,0.00019837,2]
[406640281,1772011040529,-550.0,0.00019837,2]
[406640282,1772011040550,-96.8294216,0.00019837,2]
[406640283,1772011040830,-227.89091518,0.00019837,2]
[406640284,1772011040854,-500.0,0.00019837,2]
[406640285,1772011040877,-272.10908482,0.00019837,2]
[406640286,1772011041270,-325.93821566,0.00019837,2]
[406640287,1772011041292,-500.0,0.00019837,2]
[406640288,1772011041314,-174.06178434,0.00019837,2]
[406640289,1772011041589,-325.93821566,0.00019837,2]
[406640290,1772011041613,-500.0,0.00019837,2]
[406640291,1772011041636,-174.06178434,0.00019837,2]
[406640292,1772011041954,-325.93821566,0.00019837,2]
[406640293,1772011041981,-528.75175101,0.00019837,2]
[406640294,1772011042006,-145.31003333,0.00019837,2]
[406640295,1772011042416,-339.95162541,0.00019837,2]
[406640296,1772011042439,-500.0,0.00019837,2]
[406640297,1772011042461,-160.04837459,0.00019837,2]
[406640298,1772011042913,-339.95162541,0.00019837,2]
[406640299,1772011042940,-500.0,0.00019837,2]
[406640300,1772011042961,-160.04837459,0.00019837,2]
[406640301,1772011043932,-339.95162541,0.00019837,2]
[406640302,1772011043956,-500.0,0.00019837,2]
[406640303,1772011043979,-160.04837459,0.00019837,2]
[406640304,1772011044408,-389.95162541,0.00019837,2]
[406640305,1772011044437,-500.0,0.00019837,2]
[406640306,1772011044465,-110.04837459,0.00019837,2]
[406640307,1772011044867,-389.95162541,0.00019837,2]
[406640308,1772011044891,-500.0,0.00019837,2]
[406640309,1772011044915,-110.04837459,0.00019837,2]
[406640310,1772011045209,-389.95162541,0.00019837,2]
[406640311,1772011045233,-500.0,0.00019837,2]
[406640312,1772011045255,-110.04837459,0.00019837,2]
[406640313,1772011045599,-389.95162541,0.00019837,2]
[406640314,1772011045624,-500.0,0.00019837,2]
[406640315,1772011045646,-110.04837459,0.00019837,2]
[406640316,1772011045944,-389.95162541,0.00019837,2]
[406640317,1772011045966,-500.0,0.00019837,2]
[406640318,1772011045990,-110.04837459,0.00019837,2]
[406640319,1772011046273,-389.95162541,0.00019837,2]
[406640320,1772011046294,-500.0,0.00019837,2]
[406640321,1772011046317,-110.04837459,0.00019837,2]
[406640322,1772011046641,-389.95162541,0.00019837,2]
[406640323,1772011046664,-500.0,0.00019837,2]
[406640324,1772011046687,-110.04837459,0.00019837,2]
[406640325,1772011047001,-389.95162541,0.00019837,2]
[406640326,1772011047025,-500.0,0.00019837,2]
[406640327,1772011047046,-110.04837459,0.00019837,2]
[406640328,1772011047356,-389.95162541,0.00019837,2]
[406640329,1772011047378,-500.0,0.00019837,2]
[406640330,1772011047400,-110.04837459,0.00019837,2]
[406640331,1772011047727,-389.95162541,0.00019837,2]
[406640332,1772011047750,-500.0,0.00019837,2]
[406640333,1772011047772,-110.04837459,0.00019837,2]
[406640334,1772011048360,-389.95162541,0.00019837,2]
[406640335,1772011048381,-500.0,0.00019837,2]
[406640336,1772011048403,-110.04837459,0.00019837,2]
[406640337,1772011048461,-389.95162541,0.00019837,2]
[406640338,1772011048482,-500.0,0.00019837,2]
[406640339,1772011048504,-110.04837459,0.00019837,2]
[406640340,1772011048814,-389.95162541,0.00019837,2]
[406640341,1772011048836,-500.0,0.00019837,2]
[406640342,1772011048858,-110.04837459,0.00019837,2]
[406640343,1772011049157,-389.95162541,0.00019837,2]
[406640344,1772011049180,-556.84320154,0.00019837,2]
[406640345,1772011049202,-53.20517305,0.00019837,2]
[406640346,1772011049628,-446.79482695,0.00019837,2]
[406640347,1772011049651,-500.0,0.00019837,2]
[406640348,1772011049673,-53.20517305,0.00019837,2]
[406640349,1772011050684,-446.79482695,0.00019837,2]
[406640350,1772011050709,-500.0,0.00019837,2]
[406640351,1772011050733,-53.20517305,0.00019837,2]
[406640352,1772011051284,-446.79482695,0.00019837,2]
[406640353,1772011051313,-500.0,0.00019837,2]
[406640354,1772011051340,-53.20517305,0.00019837,2]
[406640355,1772011051405,-446.79482695,0.00019837,2]
[406640356,1772011051429,-500.0,0.00019837,2]
[406640357,1772011051578,-53.20517305,0.00019837,2]
[406640358,1772011051729,-446.79482695,0.00019837,2]
[406640359,1772011051750,-208.50726905,0.00019837,2]
[406640360,1772011051772,-344.697904,0.00019837,2]
[406640361,1772011052066,-155.302096,0.00019837,2]
[406640362,1772011052090,-500.0,0.00019837,2]
[406640363,1772011052112,-344.697904,0.00019837,2]
[406640364,1772011052546,-155.302096,0.00019837,2]
[406640365,1772011052572,-500.0,0.00019837,2]
[406640366,1772011052595,-344.697904,0.00019837,2]
[406640367,1772011052989,-155.302096,0.00019837,2]
[406640368,1772011053012,-500.0,0.00019837,2]
[406640369,1772011053035,-344.697904,0.00019837,2]
[406640370,1772011053332,-155.302096,0.00019837,2]
[406640371,1772011053354,-500.0,0.00019837,2]
[406640372,1772011053375,-344.697904,0.00019837,2]
[406640373,1772011053817,-155.302096,0.00019837,2]
[406640374,1772011053837,-500.0,0.00019837,2]
[406640375,1772011053859,-344.697904,0.00019837,2]
[406640376,1772011056703,-155.302096,0.00019837,2]
[406640377,1772011056724,-500.0,0.00019837,2]
[406640378,1772011056746,-344.697904,0.00019837,2]
[406640379,1772011061949,-155.302096,0.00019837,2]
[406640380,1772011061972,-500.0,0.00019837,2]
[406640381,1772011061998,-344.697904,0.00019837,2]
[406640382,1772011080899,-1000.0,0.00019737,2]
[406640383,1772011082676,-217.24075139,0.00019737,2]
[406640384,1772011082698,-300.94,0.00019835,4]
[406640385,1772011082721,-155.302096,0.00019837,2]
[406640386,1772011082756,-326.51715261,0.00019837,2]
[406640387,1772011083754,-173.48284739,0.00019837,2]
[406640388,1772011083778,-500.0,0.00019837,2]
[406640389,1772011083807,-326.51715261,0.00019837,2]
[406640390,1772011084229,-173.48284739,0.00019837,2]
[406640391,1772011084253,-500.0,0.00019837,2]
[406640392,1772011084275,-326.51715261,0.00019837,2]
[406640393,1772011084577,-173.48284739,0.00019837,2]
[406640394,1772011084600,-500.0,0.00019837,2]
[406640395,1772011084621,-326.51715261,0.00019837,2]
[406640396,1772011085310,-173.48284739,0.00019837,2]
[406640397,1772011085333,-500.0,0.00019837,2]
[406640398,1772011085355,-326.51715261,0.00019837,2]
[406640399,1772011085422,-173.48284739,0.00019837,2]
[406640400,1772011085446,-500.0,0.00019837,2]
[406640401,1772011085470,-326.51715261,0.00019837,2]
[406640402,1772011085754,-173.48284739,0.00019837,2]
[406640403,1772011085779,-500.0,0.00019837,2]
[406640404,1772011085802,-326.51715261,0.00019837,2]
[406640405,1772011086185,-173.48284739,0.00019837,2]
[406640406,1772011086207,-500.0,0.00019837,2]
[406640407,1772011086230,-326.51715261,0.00019837,2]
[406640408,1772011086671,-173.48284739,0.00019837,2]
[406640409,1772011086695,-500.0,0.00019837,2]
[406640410,1772011086721,-167.59740121,0.00019837,2]
[406640411,1772011086743,-158.9197514,0.00019837,2]
[406640412,1772011087153,-341.0802486,0.00019837,2]
[406640413,1772011087177,-500.0,0.00019837,2]
[406640414,1772011087202,-158.9197514,0.00019837,2]
[406640415,1772011087377,-341.0802486,0.00019837,2]
[406640416,1772011087400,-500.0,0.00019837,2]
[406640417,1772011087422,-158.9197514,0.00019837,2]
[406640418,1772011087720,-341.0802486,0.00019837,2]
[406640419,1772011087742,-500.0,0.00019837,2]
[406640420,1772011087764,-158.9197514,0.00019837,2]
[406640423,1772011206762,171.03,9.5e-05,2]
[406640424,1772011207469,171.03,9.8e-05,2]
[406640425,1772011208222,171.03,0.000101,2]
[406640426,1772011208741,171.03,0.000104,2]
[406640496,1772011831692,-3134.25256481,0.0001762,2]
[406640498,1772011831702,-679.0,0.0001762,2]
[406640500,1772011831711,-300.0,0.00017797,2]
[406640502,1772011831720,-1200.0,0.00017797,2]
[406640504,1772011831730,-500.0,0.00017798,2]
[406640506,1772011831739,-336.52797233,0.00017798,2]
[406640508,1772011831749,-500.0,0.00017798,2]
[406640510,1772011831758,-500.0,0.00017798,2]
[406640512,1772011831768,-500.0,0.00017798,2]
[406640514,1772011831777,-500.0,0.00017798,2]
[406640516,1772011831786,-500.0,0.00017798,2]
[406640518,1772011831795,-500.0,0.00017798,2]
[406640520,1772011831804,-500.0,0.00017798,2]
[406640522,1772011831813,-500.0,0.00017798,2]
[406640524,1772011831822,-500.0,0.00017798,2]
[406640526,1772011831831,-500.0,0.00017798,2]
[406640528,1772011831840,-500.0,0.00017798,2]
[406640529,1772011831849,-500.0,0.00017798,2]
[406640531,1772011831860,-500.0,0.00017798,2]
[406640533,1772011831870,-250.0,0.00017798,2]
[406640535,1772011831879,-500.0,0.00017798,2]
[406640537,1772011831888,-250.0,0.00017798,2]
[406640538,1772011831897,-500.0,0.00017798,2]
[406640540,1772011831907,-500.0,0.00017798,2]
[406640542,1772011831917,-350.0,0.00017798,2]
[406640543,1772011831927,-500.0,0.00017798,2]
[406640544,1772011831937,-500.0,0.00017798,2]
[406640545,1772011831947,-500.0,0.00017798,2]
[406640546,1772011831957,-500.0,0.00017798,2]
[406640547,1772011831971,-500.0,0.00017798,2]
[406640548,1772011831981,-500.0,0.00017798,2]
[406640549,1772011831990,-500.0,0.00017798,2]
[406640550,1772011832000,-500.0,0.00017798,2]
[406640551,1772011832010,-346.92001877,0.00017798,2]
[406640552,1772011832019,-500.0,0.00017798,2]
[406640553,1772011832029,-500.0,0.00017798,2]
[406640554,1772011832039,-500.0,0.00017798,2]
[406640555,1772011832051,-500.0,0.00017798,2]
[406640556,1772011832061,-500.0,0.00017798,2]
[406640557,1772011832073,-500.0,0.00017798,2]
[406640558,1772011832083,-500.0,0.00017798,2]
[406640559,1772011832092,-108.2392436,0.00017798,2]
[406640560,1772011832104,-391.7607564,0.00017798,2]
[406640561,1772011832113,-350.42143256,0.00017798,2]
[406640569,1772011837822,-149.57856744,0.00017798,2]
[406640570,1772011837831,-500.0,0.00017798,2]
[406640571,1772011837838,-326.46883853,0.00017798,2]
[406640572,1772011837848,-173.53116147,0.00017798,2]
[406640573,1772011837856,-500.0,0.00017798,2]
[406640574,1772011837866,-500.0,0.00017798,2]
[406640575,1772011837874,-500.0,0.00017798,2]
[406640576,1772011837882,-500.0,0.00017798,2]
[406640577,1772011837891,-500.0,0.00017798,2]
[406640578,1772011837899,-500.0,0.00017798,2]
[406640579,1772011837907,-603.46131091,0.00017798,2]
[406640580,1772011837915,-500.0,0.00017798,2]
[406640581,1772011837923,-500.0,0.00017798,2]
[406640582,1772011837931,-500.0,0.00017798,2]
[406640583,1772011837938,-500.0,0.00017798,2]
[406640584,1772011837947,-500.0,0.00017798,2]
[406640585,1772011837955,-500.0,0.00017798,2]
[406640586,1772011837965,-500.0,0.00017798,2]
[406640587,1772011837973,-500.0,0.00017798,2]
[406640588,1772011837982,-500.0,0.00017798,2]
[406640589,1772011837990,-500.0,0.00017798,2]
[406640590,1772011837998,-500.0,0.00017798,2]
[406640591,1772011838007,-500.0,0.00017798,2]
[406640592,1772011838016,-500.0,0.00017798,2]
[406640593,1772011838025,-500.0,0.00017798,2]
[406640594,1772011838035,-500.0,0.00017798,2]
[406640595,1772011838044,-500.0,0.00017798,2]
[406640596,1772011838186,-178.52449265,0.00017798,2]
[406640597,1772011838208,-500.0,0.00017798,2]
[406640598,1772011838219,-500.0,0.00017798,2]
[406640599,1772011838229,-500.0,0.00017798,2]
[406640600,1772011838238,-500.0,0.00017798,2]
[406640601,1772011838248,-500.0,0.00017798,2]
[406640602,1772011838259,-500.0,0.00017798,2]
[406640603,1772011838269,-500.0,0.00017798,2]
[406640604,1772011838280,-500.0,0.00017798,2]
[406640605,1772011838291,-500.0,0.00017798,2]
[406640606,1772011838300,-500.0,0.00017798,2]
[406640607,1772011838310,-500.0,0.00017798,2]
[406640608,1772011838320,-500.0,0.00017798,2]
[406640609,1772011838330,-500.0,0.00017798,2]
[406640610,1772011838341,-500.0,0.00017798,2]
[406640611,1772011838350,-500.0,0.00017798,2]
[406640612,1772011838360,-500.0,0.00017798,2]
[406640613,1772011838370,-500.0,0.00017798,2]
[406640614,1772011838381,-500.0,0.00017798,2]
[406640615,1772011838390,-500.0,0.00017798,2]
[406640616,1772011838400,-500.0,0.00017798,2]
[406640617,1772011838411,-500.0,0.00017798,2]
[406640618,1772011838421,-500.0,0.00017798,2]
[406640619,1772011838432,-500.0,0.00017798,2]
[406640620,1772011838443,-500.0,0.00017798,2]
[406640621,1772011838453,-500.0,0.00017798,2]
[406640622,1772011838464,-11875.13292233,0.00017798,2]
[406640625,1772011840178,-4328.9567409,0.00017798,2]
[406640626,1772011841732,-559.81325542,0.00017798,2]
[406640636,1772011845887,-482.64,0.00017798,2]
[406640637,1772011846103,-1047.76194729,0.00017798,2]
[406640640,1772011900605,-264.79400376,0.00017797,2]
[406640641,1772011900623,-264.79400376,0.00017798,2]
[406640642,1772011900634,-734.5505759,0.00017798,2]
[406640667,1772012284359,223.01,9.99e-05,2]
[406640717,1772012966140,-1005.368292,0.0001759,2]
[406640718,1772012966162,-500.0,0.00017595,2]
[406640719,1772012966186,-500.0,0.00017595,2]
[406640720,1772012966208,-51.32919277,0.00017595,2]
[406640758,1772013040405,-680.0,0.00017643,2]
[406640759,1772013040415,-150.0,0.00017643,2]
[406640760,1772013040425,-159.21,0.00017696,14]
[406640761,1772013040434,-300.0,0.00017797,2]
[406640763,1772013040443,-300.0,0.00017797,2]
[406640765,1772013040452,-300.0,0.00017797,2]
[406640766,1772013040461,-1200.0,0.00017797,2]
[406640767,1772013040470,-198.8502938,0.00017798,2]
[406640768,1772013040479,-553.67405019,0.00017798,2]
[406640771,1772013043141,-146.17861481,0.00017798,2]
[406640772,1772013043151,-758.3432573,0.00017798,2]
[406640773,1772013043160,-358.80996364,0.00017798,2]
[406640774,1772013043169,-283.46447005,0.00017798,2]
[406640775,1772013043180,-2452.63178275,0.00017798,2]
[406640776,1772013043189,-154.9667584,0.00017798,2]
[406640777,1772013043198,-3233.15760876,0.00017798,2]
[406640778,1772013043208,-500.0,0.00017999,2]
[406640779,1772013043217,-500.0,0.00017999,2]
[406640780,1772013043226,-500.0,0.00017999,2]
[406640781,1772013043235,-274.06241752,0.00017999,2]
[406640782,1772013043245,-500.0,0.00017999,2]
[406640783,1772013043254,-232.9911132,0.00017999,2]
[406640784,1772013043263,-500.0,0.00017999,2]
[406640785,1772013043273,-500.0,0.00017999,2]
[406640786,1772013043282,-500.0,0.00017999,2]
[406640787,1772013043291,-545.34613109,0.00017999,2]
[406640788,1772013043301,-9250.0,0.00018,2]
[406640789,1772013043310,-4972.64393677,0.00018,2]
[406640790,1772013043319,-875.7194608,0.00018131,2]
[406640791,1772013043328,-192.7459495,0.00018758,2]
[406640792,1772013043338,-180.26624668,0.000191,2]
[406640793,1772013043347,-500.0,0.00019178,2]
[406640794,1772013043357,-500.0,0.00019178,2]
[406640795,1772013043366,-500.0,0.00019178,2]
[406640796,1772013043375,-553.01063107,0.00019178,2]
[406640797,1772013043385,-500.0,0.00019178,2]
[406640798,1772013043394,-500.0,0.00019178,2]
[406640799,1772013043404,-500.0,0.00019178,2]
[406640800,1772013043412,-500.0,0.00019178,2]
[406640801,1772013043423,-500.0,0.00019243,2]
[406640802,1772013043432,-375.26017329,0.00019243,2]
[406640803,1772013043442,-337.22551496,0.00019254,2]
[406640804,1772013043451,-1657.00539754,0.00019333,2]
[406640805,1772013043460,-420.0,0.00019423,2]
[406640806,1772013043470,-1680.0,0.00019518,2]
[406640807,1772013043479,-758.3432573,0.00019594,2]
[406640808,1772013043488,-177.0,0.00019643,2]
[406640809,1772013043497,-198.8502938,0.00019679,2]
[406640810,1772013043506,-699.852665,0.0001972,2]
[406640811,1772013043515,-500.0,0.00019809,2]
[406640812,1772013043524,-151.0,0.00019809,2]
[406640813,1772013043533,-185.35580263,0.00019838,2]
[406640814,1772013043546,-500.0,0.00019838,2]
[406640815,1772013043556,-525.80335472,0.00019838,2]
[406640816,1772013043566,-17597.5413444,0.00019839,2]
[406640817,1772013043575,-556.32990786,0.0002,120]
[406640818,1772013043585,-679.97133314,0.0002,120]
[406640819,1772013043595,-573.19447685,0.00020267,2]
[406640820,1772013043604,-2736.0962528,0.00020459,2]
[406640821,1772013043613,-606.398921,0.00020687,2]
[406640822,1772013043623,-150.0,0.00020885,2]
[406640823,1772013043632,-150.0,0.00020885,2]
[406640824,1772013043641,-1032.748267,0.00020898,2]
[406640825,1772013043814,-150.0,0.0002094,2]
[406640826,1772013043824,-150.0,0.0002094,2]
[406640827,1772013043834,-200.0,0.00020995,2]
[406640828,1772013043844,-200.0,0.00020995,2]
[406640829,1772013043854,-520.38,0.00021059,2]
[406640830,1772013043863,-587.0,0.00021197,2]
[406640831,1772013043873,-150.0,0.00021368,2]
[406640832,1772013043882,-758.3432573,0.00021389,2]
[406640833,1772013043892,-430.0,0.00021406,2]
[406640834,1772013043902,-194.60087338,0.00021423,2]
[406640835,1772013043911,-285.0,0.0002144,2]
[406640836,1772013043921,-198.8502938,0.00021559,2]
[406640837,1772013043931,-699.852665,0.00021642,2]
[406640838,1772013043941,-204.0,0.00021643,2]
[406640839,1772013043951,-1032.748267,0.00021778,2]
[406640840,1772013043960,-156.0,0.00021918,2]
[406640841,1772013043969,-150.0,0.00021918,2]
[406640842,1772013043979,-150.0,0.00021918,2]
[406640843,1772013043988,-448.54229767,0.00022466,2]
[406640844,1772013043998,-150.61629608,0.00022466,2]
[406640845,1772013044007,-1032.748267,0.00022657,2]
[406640846,1772013044017,-1030.71830827,0.00022783,2]
[406640847,1772013044026,-151.0,0.00022821,2]
[406640848,1772013044036,-187.609683,0.00022821,2]
[406640849,1772013044045,-151.0,0.00022821,2]
[406640850,1772013044055,-151.0,0.00022821,2]
[406640851,1772013044064,-151.0,0.00022821,2]
[406640852,1772013044074,-151.0,0.00022821,2]
[406640853,1772013044084,-151.0,0.00022821,2]
[406640854,1772013044095,-151.0,0.00022821,2]
[406640855,1772013044104,-151.0,0.00022821,2]
[406640856,1772013044114,-151.0,0.00022821,2]
[406640857,1772013044124,-151.0,0.00022821,2]
[406640858,1772013044133,-500.0,0.00022821,2]
[406640859,1772013044143,-500.0,0.00022821,2]
[406640860,1772013044153,-500.0,0.00022821,2]
[406640861,1772013044163,-500.0,0.00022821,2]
[406640862,1772013044172,-500.0,0.00022821,2]
[406640863,1772013044181,-209.40437684,0.00022821,2]
[406640864,1772013044191,-500.0,0.00022821,2]
[406640865,1772013044200,-217.15233878,0.00022821,2]
[406640866,1772013044209,-500.0,0.00022821,2]
[406640867,1772013044219,-225.18697532,0.00022821,2]
[406640868,1772013044228,-500.0,0.00022821,2]
[406640869,1772013044237,-500.0,0.00022821,2]
[406640870,1772013044247,-233.51889341,0.00022821,2]
[406640871,1772013044256,-500.0,0.00022821,2]
[406640872,1772013044266,-500.0,0.00022821,2]
[406640873,1772013044275,-242.15909246,0.00022821,2]
[406640874,1772013044284,-500.0,0.00022821,2]
[406640875,1772013044294,-500.0,0.00022821,2]
[406640876,1772013044304,-251.11897888,0.00022821,2]
[406640877,1772013044313,-500.0,0.00022821,2]
[406640878,1772013044323,-260.4103811,0.00022821,2]
[406640879,1772013044332,-500.0,0.00022821,2]
[406640880,1772013044341,-270.0455652,0.00022821,2]
[406640881,1772013044351,-500.0,0.00022821,2]
[406640882,1772013044360,-500.0,0.00022821,2]
[406640883,1772013044369,-280.03725112,0.00022821,2]
[406640884,1772013044379,-325.8644315,0.00022821,2]
[406640885,1772013044388,-290.39862941,0.00022821,2]
[406640886,1772013044397,-301.1433787,0.00022821,2]
[406640887,1772013044406,-170.07839991,0.00022821,2]
[406640888,1772013044416,-500.0,0.00022821,2]
[406640889,1772013044426,-500.0,0.00022821,2]
[406640890,1772013044435,-500.0,0.00022821,2]
[406640891,1772013044445,-500.0,0.00022821,2]
[406640892,1772013044454,-500.0,0.00022821,2]
[406640893,1772013044464,-500.0,0.00022821,2]
[406640894,1772013044473,-500.0,0.00022821,2]
[406640895,1772013044483,-500.0,0.00022821,2]
[406640896,1772013044492,-500.0,0.00022821,2]
[406640897,1772013044502,-250.0,0.00022821,2]
[406640898,1772013044511,-500.0,0.00022821,2]
[406640899,1772013044521,-500.0,0.00022821,2]
[406640900,1772013044530,-250.0,0.00022821,2]
[406640901,1772013044543,-2736.0962528,0.00023121,2]
[406640902,1772013044552,-1414.67,0.00023175,10]
[406640903,1772013044562,-758.3432573,0.00023185,2]
[406640904,1772013044571,-198.8502938,0.0002344,2]
[406640905,1772013044583,-158.89884542,0.00023477,5]
[406640906,1772013044592,-500.0,0.00023536,2]
[406640907,1772013044602,-2000.0,0.00023536,2]
[406640908,1772013044611,-9000.0,0.00023536,2]
[406640909,1772013044623,-5052.16850778,0.00023536,2]
[406640910,1772013044633,-1032.748267,0.00023537,2]
[406640911,1772013044642,-699.852665,0.00023564,2]
[406640912,1772013044651,-231.0,0.00023643,2]
[406640913,1772013044660,-154.9667584,0.00023733,2]
[406640914,1772013044670,-444.34420795,0.0002392,2]
[406640915,1772013044680,-168.0,0.00024,7]
[406640916,1772013044689,-597.91,0.00024391,3]
[406640917,1772013044698,-1032.748267,0.00024417,2]
[406640918,1772013044708,-150.3656926,0.00024658,2]
[406640919,1772013044718,-1789.22525409,0.000249,2]
[406640920,1772013044728,-1195.81,0.0002499,3]
[406640921,1772013044737,-1089.72763291,0.00025,7]
[406640922,1772013044747,-1000.0,0.00025,30]
[406640923,1772013044756,-2316.32078278,0.00025,2]
[406640924,1772013044767,-500.0,0.0002513,20]
[406640925,1772013044776,-500.0,0.0002513,5]
[406640926,1772013044785,-151.05360331,0.00025179,2]
[406640927,1772013044796,-604.21441324,0.00025179,2]
[406640928,1772013044805,-1032.748267,0.00025297,2]
[406640929,1772013044815,-168.0,0.00025373,7]
[406640930,1772013044824,-248.58,0.000254,2]
[406640931,1772013044833,-500.0,0.0002558,2]
[406640932,1772013044843,-326.24690252,0.00025691,2]
[406640933,1772013044852,-159.19071756,0.00025691,2]
[406640934,1772013044862,-1195.82,0.00025761,3]
[406640935,1772013044871,-6000.000002,0.00026,30]
[406640936,1772013044880,-1017.98952466,0.00026012,2]
[406640937,1772013044890,-230.24,0.00026134,2]
[406640938,1772013044900,-161.0,0.00026239,120]
[406640939,1772013044910,-298.95,0.00026266,3]
[406640940,1772013044919,-1057.26736851,0.00026276,12]